fUST/lending_fUST_20251111
["ID","MTS","AMOUNT","RATE_DAILY","PERIOD"]
[393580542,1762815036880,-151.0,0.00021972,7]
[393580543,1762815036890,-151.0,0.00021972,7]
[393580544,1762815036899,-151.0,0.00021972,7]
[393580545,1762815036907,-151.0,0.00021972,7]
[393580546,1762815036917,-151.0,0.00021972,7]
[393580547,1762815036926,-211.200329,0.00021972,7]
[393580548,1762815036935,-500.0,0.00021973,2]
[393580549,1762815036945,-500.0,0.00021973,2]
[393580550,1762815036954,-555.54208564,0.00021973,2]
[393580551,1762815036963,-500.0,0.00021973,2]
[393580552,1762815036972,-165.31267103,0.00021973,2]
[393580553,1762815036981,-500.0,0.00021973,2]
[393580554,1762815036990,-575.96280566,0.00021973,2]
[393580555,1762815036999,-503.11331673,0.00021973,2]
[393580556,1762815037008,-499.028427,0.00021973,2]
[393580557,1762815037018,-500.0,0.00021973,2]
[393580558,1762815037029,-500.0,0.00021973,2]
[393580559,1762815037038,-500.0,0.00021973,2]
[393580560,1762815037048,-500.0,0.00021973,2]
[393580561,1762815037056,-500.92677704,0.00021973,2]
[393580562,1762815037067,-500.0,0.00021973,2]
[393580563,1762815037076,-500.0,0.00021973,2]
[393580564,1762815037086,-500.0,0.00021973,2]
[393580565,1762815037099,-500.0,0.00021973,2]
[393580566,1762815037109,-500.0,0.00021973,2]
[393580567,1762815037119,-500.0,0.00021973,2]
[393580568,1762815037131,-500.0,0.00021973,2]
[393580569,1762815037141,-500.0,0.00021973,2]
[393580570,1762815037150,-500.0,0.00021973,2]
[393580571,1762815037159,-500.0,0.00021973,2]
[393580572,1762815037168,-500.0,0.00021973,2]
[393580573,1762815037178,-500.0,0.00021973,2]
[393580574,1762815037188,-554.38715842,0.00021973,2]
[393580575,1762815037197,-500.92126911,0.00021973,2]
[393580576,1762815037207,-500.0,0.00021973,2]
[393580577,1762815037217,-500.0,0.00021973,2]
[393580578,1762815037227,-500.0,0.00021973,2]
[393580579,1762815037235,-500.0,0.00021973,2]
[393580580,1762815037245,-421.56991186,0.00021973,2]
[393580581,1762815037254,-500.0,0.00021973,2]
[393580582,1762815037263,-500.0,0.00021973,2]
[393580583,1762815037273,-170.60808093,0.00021973,2]
[393580584,1762815037284,-500.0,0.00021973,2]
[393580585,1762815037293,-151.0,0.00021973,7]
[393580586,1762815037303,-151.0,0.00021973,7]
[393580587,1762815037312,-151.0,0.00021973,7]
[393580588,1762815037322,-151.0,0.00021973,2]
[393580589,1762815037331,-151.0,0.00021973,2]
[393580590,1762815037341,-151.0,0.00021973,2]
[393580591,1762815037351,-1912.46736632,0.00021976,2]
[393580592,1762815037360,-1000.0,0.00021987,2]
[393580593,1762815037370,-1000.0,0.00021987,2]
[393580594,1762815037379,-1000.0,0.00021987,2]
[393580595,1762815037389,-1000.0,0.00021987,2]
[393580596,1762815037398,-1000.0,0.00021987,2]
[393580598,1762815037408,-151.0,0.00021988,7]
[393580599,1762815037417,-500.0,0.00021989,2]
[393580600,1762815037426,-151.0,0.0002199,7]
[393580601,1762815037435,-151.0,0.0002199,7]
[393580602,1762815037444,-151.0,0.0002199,7]
[393580603,1762815037453,-151.0,0.0002199,7]
[393580604,1762815037463,-151.0,0.0002199,7]
[393580605,1762815037471,-264.423266,0.0002199,7]
[393580606,1762815037481,-151.0,0.0002199,7]
[393580607,1762815037491,-153.620232,0.0002199,7]
[393580608,1762815037500,-151.0,0.0002199,7]
[393580609,1762815037509,-172.701613,0.0002199,7]
[393580611,1762815037519,-151.0,0.0002199,7]
[393580613,1762815037529,-151.0,0.0002199,7]
[393580614,1762815037539,-151.0,0.0002199,7]
[393580616,1762815037548,-151.0,0.0002199,7]
[393580617,1762815037558,-151.0,0.0002199,7]
[393580618,1762815037567,-151.0,0.0002199,2]
[393580619,1762815037577,-151.0,0.0002199,2]
[393580621,1762815037587,-151.0,0.0002199,2]
[393580623,1762815037596,-155.74967,0.0002199,7]
[393580624,1762815037605,-151.0,0.0002199,7]
[393580625,1762815037614,-151.0,0.0002199,7]
[393580626,1762815037623,-164.38865,0.0002199,7]
[393580627,1762815037632,-164.38865,0.0002199,7]
[393580628,1762815037641,-164.38865,0.0002199,7]
[393580630,1762815037650,-164.38865,0.0002199,7]
[393580631,1762815037660,-151.0,0.0002199,7]
[393580632,1762815037669,-151.0,0.0002199,7]
[393580633,1762815037679,-151.0,0.0002199,7]
[393580634,1762815037688,-151.0,0.0002199,7]
[393580635,1762815037697,-195.630336,0.0002199,7]
[393580636,1762815037707,-100000.0,0.0002199,2]
[393580637,1762815037716,-3319.05,0.00022,7]
[393580638,1762815037725,-54432.54847787,0.00022,7]
[393580640,1762815038498,-199.13245302,0.00019073,2]
[393580641,1762815038508,-401.01025298,0.00020194,2]
[393580642,1762815038518,-159.128561,0.00020195,7]
[393580643,1762815038527,-151.0,0.00020195,7]
[393580644,1762815038537,-151.0,0.00020195,7]
[393580645,1762815038547,-151.0,0.00020195,7]
[393580646,1762815038557,-151.0,0.00020195,7]
[393580647,1762815038567,-151.0,0.00020981,7]
[393580648,1762815038576,-151.0,0.00020981,7]
[393580649,1762815038586,-141.661133,0.000216,2]
[393580650,1762815038598,-144.428867,0.000216,2]
[393580651,1762815038607,-286.09,0.000216,2]
[393580652,1762815038616,-286.09,0.000216,2]
[393580653,1762815038625,-286.09,0.000217,2]
[393580654,1762815038635,-286.09,0.000217,2]
[393580655,1762815038643,-152.61812358,0.000218,2]
[393580660,1762815040018,-262.168388,0.00020195,7]
[393580661,1762815040030,-206.79609659,0.00021633,2]
[393580662,1762815040039,-133.47187642,0.000218,2]
[393580663,1762815040048,-286.09,0.000218,2]
[393580664,1762815040058,-286.09,0.000218,2]
[393580665,1762815040067,-286.09,0.000219,2]
[393580666,1762815040077,-286.09,0.000219,2]
[393580667,1762815040086,-151.0,0.00021958,7]
[393580668,1762815040095,-151.0,0.00021958,7]
[393580669,1762815040104,-151.0,0.0002199,7]
[393580670,1762815040114,-151.0,0.0002199,7]
[393580672,1762815040123,-9405.66152213,0.00022,7]
[393580674,1762815040137,-151.0,0.00022,7]
[393580676,1762815040146,-152.907552,0.00022,7]
[393580678,1762815040156,-158.461832,0.00022,7]
[393580680,1762815040165,-151.0,0.00022,7]
[393580681,1762815040175,-173.645472,0.00022,7]
[393580682,1762815040184,-151.0,0.00022,7]
[393580683,1762815040193,-151.0,0.00022,7]
[393580684,1762815040305,-151.0,0.00022,7]
[393580685,1762815040316,-151.0,0.00022,7]
[393580686,1762815040326,-151.0,0.00022,7]
[393580687,1762815040335,-151.0,0.00022,7]
[393580688,1762815040345,-151.0,0.00022,7]
[393580689,1762815040355,-151.0,0.00022,7]
[393580690,1762815040364,-151.0,0.00022,7]
[393580691,1762815040374,-151.0,0.00022,7]
[393580692,1762815040382,-151.0,0.00022,7]
[393580693,1762815040391,-151.0,0.00022,7]
[393580694,1762815040400,-151.0,0.00022,7]
[393580695,1762815040410,-151.0,0.00022,7]
[393580696,1762815040419,-151.0,0.00022,7]
[393580697,1762815040429,-206.289406,0.00022,7]
[393580698,1762815040438,-151.0,0.00022,7]
[393580699,1762815040447,-151.0,0.00022,7]
[393580700,1762815040457,-151.0,0.00022,7]
[393580701,1762815040466,-151.0,0.00022,7]
[393580702,1762815040476,-2000.0,0.00022,4]
[393580703,1762815040485,-286.144364,0.00022,7]
[393580704,1762815040494,-151.0,0.00022,2]
[393580705,1762815040503,-151.0,0.00022,2]
[393580706,1762815040513,-187.56182,0.00022,2]
[393580707,1762815040522,-151.0,0.00022,7]
[393580708,1762815040533,-164.38865,0.00022,7]
[393580709,1762815040542,-164.38865,0.00022,7]
[393580710,1762815040552,-164.38865,0.00022,7]
[393580711,1762815040562,-164.38865,0.00022,7]
[393580712,1762815040571,-226.648516,0.00022,7]
[393580713,1762815040581,-151.0,0.00022,7]
[393580714,1762815040590,-286.09,0.00022,2]
[393580715,1762815040599,-286.09,0.00022,2]
[393580716,1762815040609,-286.09,0.00022,2]
[393580717,1762815040618,-2543.47112969,0.0002208,2]
[393580718,1762815040627,-151.0,0.000221,6]
[393580719,1762815040636,-151.0,0.000221,5]
[393580720,1762815040646,-286.09,0.000221,2]
[393580721,1762815040656,-286.09,0.000221,2]
[393580722,1762815040665,-414.95,0.00022138,2]
[393580723,1762815040675,-151.0,0.000222,8]
[393580724,1762815040684,-151.0,0.000222,7]
[393580725,1762815040693,-151.0,0.000222,5]
[393580726,1762815040702,-286.09,0.000222,2]
[393580727,1762815040711,-286.09,0.000222,2]
[393580728,1762815040720,-1529.12487323,0.00022205,2]
[393580729,1762815040730,-151.0,0.00022238,7]
[393580730,1762815040739,-151.0,0.00022238,7]
[393580731,1762815040748,-270.877675,0.00022238,7]
[393580732,1762815040757,-151.0,0.00022238,7]
[393580733,1762815040766,-151.0,0.00022238,7]
[393580734,1762815040776,-151.0,0.00022238,7]
[393580735,1762815040785,-155.570449,0.00022238,7]
[393580736,1762815040795,-151.0,0.00022238,7]
[393580737,1762815040804,-163.550409,0.00022238,7]
[393580738,1762815040813,-151.0,0.00022238,7]
[393580739,1762815040823,-166.5409,0.00022238,7]
[393580740,1762815040832,-151.0,0.00022238,7]
[393580741,1762815040842,-301.35577,0.00022238,7]
[393580742,1762815040854,-151.0,0.00022238,7]
[393580743,1762815040863,-107.0999215,0.00022238,7]
[393580749,1762815044377,2939.0,0.00019172,6]
[393580853,1762815046245,-199.13245301,0.00019584,2]
[393580855,1762815046256,-199.13245301,0.00020095,2]
[393580857,1762815046267,-2561.73509378,0.00021477,2]
[393580860,1762815046279,-721.73965932,0.00021477,2]
[393580862,1762815046290,-1396.55,0.00022228,10]
[393580864,1762815046300,-43.9000785,0.00022238,7]
[393580866,1762815046310,-151.0,0.00022238,7]
[393580868,1762815046320,-151.0,0.00022238,7]
[393580870,1762815046330,-151.0,0.00022238,7]
[393580872,1762815046340,-256.311674,0.00022238,7]
[393580874,1762815046350,-26278.71061188,0.00022238,2]
[393580898,1762815111645,5000.0,0.00019616,4]
[393580899,1762815183387,1666.66,0.00037171,60]
[393580900,1762815183638,1666.66,0.00037171,60]
[393580901,1762815183878,1666.66,0.00037171,60]
[393580902,1762815184148,1666.66,0.00037171,60]
[393580903,1762815184423,1666.66,0.00037171,60]
[393580904,1762815184656,1666.66,0.00037171,60]
[393580905,1762815184902,1666.66,0.00037171,60]
[393580906,1762815185130,1666.66,0.00037171,60]
[393580907,1762815185353,1666.66,0.00037171,60]
[393580908,1762815185598,1666.66,0.00037171,60]
[393580909,1762815185895,1666.66,0.00037171,60]
[393580910,1762815186137,1666.66,0.00037171,60]
[393580911,1762815186379,1666.66,0.00037171,60]
[393580912,1762815186624,1666.66,0.00037171,60]
[393580913,1762815186852,1666.66,0.00037171,60]
[393580914,1762815187129,1666.66,0.00037171,120]
[393580915,1762815187364,1666.66,0.00037171,120]
[393580916,1762815187591,1666.66,0.00037171,120]
[393580917,1762815187816,1666.66,0.00037171,120]
[393580918,1762815188082,1666.66,0.00037171,120]
[393580919,1762815188364,1666.66,0.00037171,120]
[393580920,1762815188627,1666.66,0.00037171,120]
[393580921,1762815188859,1666.66,0.00037171,120]
[393580922,1762815189125,1666.78,0.00037171,120]
[393580923,1762815191051,5000.0,0.0001866,2]
[393580925,1762815212955,5000.0,0.0001866,2]
[393580926,1762815235516,5000.0,0.0001866,2]
[393580927,1762815257788,5000.0,0.0001866,2]
[393580928,1762815279748,5000.0,0.0001866,2]
[393580929,1762815288068,297.0,0.00032877,120]
[393580930,1762815302696,5000.0,0.0001866,2]
[393580931,1762815325153,5000.0,0.0001866,2]
[393580933,1762815348311,3019.44865487,0.0001866,2]
[393580934,1762815525217,5000.0,0.0001866,2]
[393581031,1762816232086,-525.06757274,0.0001882,2]
[393581033,1762816232098,-3267.11371187,0.0001882,2]
[393581035,1762816232107,-2431.1078562,0.0001892,2]
[393581037,1762816232117,-176.43467888,0.00018947,2]
[393581039,1762816232126,-341.72487073,0.00019173,2]
[393581041,1762816232135,-1200.0,0.00019228,2]
[393581043,1762816232145,-459.024043,0.0001923,2]
[393581044,1762816232153,-375.62164543,0.00020873,2]
[393581045,1762816232162,-300.0,0.00020878,2]
[393581047,1762816232171,-300.0,0.00020878,2]
[393581050,1762816232180,-300.0,0.00020878,2]
[393581051,1762816232189,-1200.0,0.00020879,2]
[393581054,1762816232198,-10740.2276364,0.0002088,2]
[393581057,1762816232209,-382.29027402,0.0002088,2]
[393581062,1762816232230,-558.76753725,0.0002088,2]
[393581075,1762816237924,-500.0,0.00020879,2]
[393581076,1762816237934,-500.0,0.00020879,2]
[393581077,1762816237945,-500.0,0.00020879,2]
[393581078,1762816237954,-500.0,0.00020879,2]
[393581079,1762816237963,-500.0,0.00020879,2]
[393581080,1762816237972,-500.0,0.00020879,2]
[393581081,1762816237981,-211.97473776,0.00020879,2]
[393581082,1762816237990,-500.0,0.00020879,2]
[393581083,1762816237999,-500.0,0.00020879,2]
[393581084,1762816238008,-442.98296631,0.00020879,2]
[393581085,1762816238017,-500.0,0.00020879,2]
[393581086,1762816238030,-545.61151821,0.00020879,2]
[393581087,1762816238040,-516.80266716,0.00020879,2]
[393581088,1762816238049,-500.0,0.00020879,2]
[393581089,1762816238060,-500.0,0.00020879,2]
[393581090,1762816238069,-518.07257467,0.00020879,2]
[393581091,1762816238079,-500.0,0.00020879,2]
[393581092,1762816238088,-500.0,0.00020879,2]
[393581093,1762816238098,-500.0,0.00020879,2]
[393581094,1762816238107,-500.0,0.00020879,2]
[393581095,1762816238116,-480.55044133,0.00020879,2]
[393581096,1762816238125,-500.0,0.00020879,2]
[393581097,1762816238135,-500.0,0.00020879,2]
[393581098,1762816238144,-500.0,0.00020879,2]
[393581099,1762816238154,-500.0,0.00020879,2]
[393581100,1762816238163,-500.0,0.00020879,2]
[393581101,1762816238172,-500.0,0.00020879,2]
[393581102,1762816238182,-500.0,0.00020879,2]
[393581103,1762816238191,-500.0,0.00020879,2]
[393581104,1762816238201,-500.0,0.00020879,2]
[393581105,1762816238211,-500.0,0.00020879,2]
[393581106,1762816238221,-38318.71455233,0.0002088,2]
[393581107,1762816238230,-208.19292107,0.00020947,2]
[393581108,1762816238240,-234.393,0.00020979,2]
[393581109,1762816238250,-341.72487073,0.00020982,2]
[393581110,1762816238260,-1680.0,0.00021055,2]
[393581111,1762816238270,-169.58352199,0.00021451,5]
[393581112,1762816238280,-162.8757457,0.00021578,2]
[393581113,1762816238289,-297.8851395,0.00021578,2]
[393581114,1762816238299,-3510.49657186,0.00021933,2]
[393581115,1762816238309,-500.0,0.00021973,2]
[393581116,1762816238320,-151.0,0.000221,7]
[393581117,1762816238330,-151.0,0.000221,5]
[393581118,1762816238340,-361.69119441,0.00022124,2]
[393581119,1762816238350,-151.0,0.00022125,2]
[393581120,1762816238361,-151.0,0.00022125,2]
[393581121,1762816238371,-151.0,0.00022125,2]
[393581122,1762816238381,-151.0,0.00022125,2]
[393581123,1762816238391,-151.0,0.00022125,2]
[393581124,1762816238402,-151.0,0.00022125,2]
[393581125,1762816238412,-151.0,0.00022125,2]
[393581126,1762816238422,-151.0,0.00022125,2]
[393581127,1762816238432,-151.0,0.00022125,2]
[393581128,1762816238442,-151.0,0.00022125,2]
[393581129,1762816238451,-151.0,0.00022125,2]
[393581130,1762816238462,-151.0,0.00022125,2]
[393581131,1762816238471,-151.0,0.00022125,2]
[393581132,1762816238482,-151.0,0.00022125,2]
[393581133,1762816238492,-151.0,0.00022125,2]
[393581134,1762816238502,-151.0,0.00022125,2]
[393581135,1762816238513,-151.0,0.00022125,2]
[393581136,1762816238523,-151.0,0.00022125,2]
[393581137,1762816238534,-151.0,0.00022125,2]
[393581138,1762816238543,-151.0,0.00022125,2]
[393581139,1762816238554,-1567.29,0.00022128,3]
[393581140,1762816238567,-783.64,0.00022128,3]
[393581141,1762816238577,-391.82,0.00022128,3]
[393581142,1762816238587,-195.91,0.00022128,3]
[393581143,1762816238597,-587.78,0.00022128,3]
[393581144,1762816238607,-77998.39547399,0.00022138,2]
[393581145,1762816238619,-1093.86499813,0.00022138,2]
[393581166,1762816240142,-1202.22657072,0.00022138,2]
[393581205,1762816245624,-1163.79,0.00022128,10]
[393581207,1762816245634,-67197.5776531,0.00022138,2]
[393581211,1762816245662,-3243.90000001,0.00022138,2]
[393581219,1762816245784,-803.02128893,0.00022138,2]
[393581244,1762816246417,301.71,0.00037155,20]
[393581245,1762816246430,-1061.0,0.00022138,2]
[393581249,1762816482886,407.0,0.00037155,120]
[393581252,1762816707701,445.367529,0.00013699,2]
[393581253,1762816727412,2017.54007072,0.00037148,20]
[393581254,1762816728662,751.35357859,0.00037148,120]
[393581359,1762817432396,-288.14248734,0.00018969,2]
[393581360,1762817432406,-205.19891758,0.00019173,2]
[393581361,1762817432415,-178.28212688,0.00019534,2]
[393581362,1762817432424,-301.85887493,0.00019607,2]
[393581363,1762817432434,-293.5575576,0.00019895,2]
[393581365,1762817432443,-318.74993343,0.00019968,2]
[393581367,1762817432453,-573.74988017,0.00019968,2]
[393581368,1762817432463,-128.49188807,0.00019968,2]
[393581391,1762817438256,-890.48789911,0.00019968,2]
[393581392,1762817438271,-121.71210089,0.00019968,2]
[393581394,1762817438283,-46.90288677,0.00019968,2]
[393581396,1762817438292,-1200.0,0.00019999,2]
[393581398,1762817438302,-2614.39609825,0.0002,2]
[393581400,1762817438312,-681.90172993,0.0002007,2]
[393581401,1762817438322,-168.33508613,0.0002007,2]
[393581402,1762817438332,-300.0,0.00020185,2]
[393581403,1762817438341,-445.367529,0.00020187,2]
[393581404,1762817438352,-500.0,0.00020872,2]
[393581405,1762817438362,-500.0,0.00020872,2]
[393581406,1762817438372,-500.0,0.00020872,2]
[393581407,1762817438381,-500.0,0.00020872,2]
[393581408,1762817438391,-500.0,0.00020872,2]
[393581409,1762817438401,-338.4012798,0.00020872,2]
[393581410,1762817438415,-500.0,0.00020872,2]
[393581411,1762817438424,-187.92808437,0.00020872,2]
[393581412,1762817438434,-491.48120275,0.00020872,2]
[393581413,1762817438444,-500.0,0.00020872,2]
[393581414,1762817438454,-500.0,0.00020872,2]
[393581415,1762817438463,-500.0,0.00020872,2]
[393581416,1762817438473,-616.97265299,0.00020872,2]
[393581417,1762817438482,-500.0,0.00020872,2]
[393581418,1762817438492,-500.0,0.00020872,2]
[393581419,1762817438502,-500.0,0.00020872,2]
[393581420,1762817438512,-34882.59252266,0.00020873,2]
[393581421,1762817438523,-7563.55596424,0.00020873,2]
[393581422,1762817438535,-7553.8515131,0.00020873,2]
[393581423,1762817438544,-328.01610158,0.00020878,2]
[393581424,1762817438553,-205.19891758,0.00020982,2]
[393581425,1762817438562,-388.0572504,0.00021019,2]
[393581426,1762817438572,-443.05050646,0.00021019,2]
[393581427,1762817438582,-217.65924271,0.00021019,2]
[393581428,1762817438591,-391.78663688,0.00021019,2]
[393581429,1762817438601,-695.8130671,0.00021019,2]
[393581430,1762817438611,-296.48959734,0.00021126,2]
[393581431,1762817438620,-465.63841613,0.00021126,2]
[393581432,1762817438629,-210.37290971,0.00021534,2]
[393581433,1762817438639,-1330.34161756,0.00021875,2]
[393581436,1762817440392,-303.20347081,0.00019968,2]
[393581437,1762817440402,-215.61800615,0.00021875,2]
[393581438,1762817440414,-1691.91914094,0.00021875,2]
[393581439,1762817440425,-6549.20766806,0.00021875,2]
[393581455,1762817446629,-7835.65719669,0.00020778,2]
[393581456,1762817446639,-1565.10374725,0.00021875,2]
[393581865,1762818040120,9922.54,0.00017781,2]
[393582002,1762818559034,198.82790702,0.0001866,2]
[393582031,1762818632465,-1241.4874039,0.0001866,2]
[393582044,1762818632581,-302.52043825,0.0001866,2]
[393582046,1762818632593,-1643.47264835,0.0001866,2]
[393582082,1762818638362,-1461.37210873,0.0001866,2]
[393582086,1762818646160,-152.31949375,0.0001866,2]
[393582087,1762818646170,-173.50902614,0.00018982,2]
[393582088,1762818646180,-205.33567127,0.00019173,2]
[393582089,1762818646190,-169.60219172,0.00019968,2]
[393582090,1762818646200,-1200.0,0.00020915,2]
[393582091,1762818646209,-300.0,0.00020916,2]
[393582092,1762818646219,-3243.3366575,0.00020917,2]
[393582093,1762818646228,-964.85316651,0.00020917,2]
[393582094,1762818646264,-389.19926261,0.00020917,2]
[393582095,1762818646832,-261.48613438,0.00020917,2]
[393582096,1762818646842,-204.74065085,0.00020982,2]
[393582097,1762818646852,-385.6086062,0.00020995,2]
[393582098,1762818646862,-500.0,0.00021076,2]
[393582111,1762818647009,-500.0,0.00021076,2]
[393582113,1762818647018,-500.0,0.00021076,2]
[393582115,1762818647028,-500.0,0.00021076,2]
[393582117,1762818647036,-500.0,0.00021076,2]
[393582119,1762818647046,-500.0,0.00021076,2]
[393582121,1762818647056,-500.0,0.00021076,2]
[393582123,1762818647065,-500.0,0.00021076,2]
[393582125,1762818647075,-500.0,0.00021076,2]
[393582127,1762818647084,-500.0,0.00021076,2]
[393582129,1762818647094,-235.21918367,0.00021076,2]
[393582131,1762818647103,-500.0,0.00021076,2]
[393582133,1762818647112,-500.0,0.00021076,2]
[393582135,1762818647122,-500.0,0.00021076,2]
[393582137,1762818647131,-500.0,0.00021076,2]
[393582139,1762818647140,-218.79280843,0.00021076,2]
[393582141,1762818647149,-500.0,0.00021076,2]
[393582143,1762818647159,-500.0,0.00021076,2]
[393582145,1762818647168,-500.0,0.00021076,2]
[393582147,1762818647179,-500.0,0.00021076,2]
[393582149,1762818647188,-500.0,0.00021076,2]
[393582151,1762818647197,-538.27706311,0.00021076,2]
[393582153,1762818647206,-500.0,0.00021076,2]
[393582155,1762818647215,-500.0,0.00021076,2]
[393582157,1762818647224,-500.0,0.00021076,2]
[393582159,1762818647233,-500.0,0.00021076,2]
[393582161,1762818647242,-58.08021213,0.00021076,2]
[393582181,1762818703147,3217.76,0.000328,120]
[393582184,1762818785663,1000.0,0.00032,120]
[393582231,1762819351325,438.244717,0.00013699,2]
[393582232,1762819376472,300.0,0.000137,2]
[393582233,1762819387008,300.0,0.000137,2]
[393582234,1762819397697,300.0,0.000137,2]
[393582235,1762819407951,300.0,0.000137,2]
[393582236,1762819418911,300.0,0.000137,2]
[393582237,1762819432131,151.16897374,0.000137,2]
[393582238,1762819521197,10000.0,0.00018,2]
[393582239,1762819533342,10000.0,0.00018,2]
[393582240,1762819553695,1818.82757675,0.00018,2]
[393582295,1762819832716,-593.81135556,0.00018222,2]
[393582526,1762819835418,200.0,0.000282,120]
[393582527,1762819835730,241.4292,0.000298,120]
[393582703,1762819842456,-0.15240664,0.00018222,2]
[393582890,1762819846820,-181.90733304,0.00018021,2]
[393582891,1762819846831,-4406.0362378,0.00018222,2]
[393582892,1762819846840,-165.94403261,0.00018314,2]
[393582893,1762819846849,-171.4,0.00018406,2]
[393582894,1762819846858,-2762.54007144,0.00018592,2]
[393582895,1762819846868,-1200.0,0.00018968,2]
[393582896,1762819846878,-413.81210046,0.00018969,2]
[393582897,1762819846887,-205.43828779,0.00019173,2]
[393582898,1762819846896,-300.0,0.00019967,2]
[393582899,1762819846906,-6856.20004713,0.00020087,2]
[393582900,1762819846915,-337.58634035,0.00020123,2]
[393582901,1762819846924,-190.97697872,0.00020123,2]
[393582902,1762819846934,-500.0,0.00020123,2]
[393582903,1762819846943,-500.0,0.00020123,2]
[393582904,1762819846952,-500.0,0.00020123,2]
[393582905,1762819846961,-500.0,0.00020123,2]
[393582906,1762819846970,-500.0,0.00020123,2]
[393582907,1762819846980,-500.0,0.00020123,2]
[393582908,1762819846988,-500.0,0.00020123,2]
[393582909,1762819846998,-500.0,0.00020123,2]
[393582911,1762819847007,-500.0,0.00020123,2]
[393582913,1762819847016,-500.0,0.00020123,2]
[393582915,1762819847026,-500.0,0.00020123,2]
[393582917,1762819847035,-500.0,0.00020123,2]
[393582919,1762819847044,-500.0,0.00020123,2]
[393582920,1762819847055,-500.0,0.00020123,2]
[393582921,1762819847064,-500.0,0.00020123,2]
[393582922,1762819847073,-500.0,0.00020123,2]
[393582923,1762819847082,-500.0,0.00020123,2]
[393582924,1762819847091,-97.75442645,0.00020123,2]
[393582942,1762819847551,-402.24557355,0.00020123,2]
[393582944,1762819847561,-500.0,0.00020123,2]
[393582945,1762819847571,-152.97272403,0.00020123,2]
[393582947,1762819847580,-500.0,0.00020123,2]
[393582949,1762819847590,-500.0,0.00020123,2]
[393582950,1762819847599,-500.0,0.00020123,2]
[393582951,1762819847608,-500.0,0.00020123,2]
[393582952,1762819847618,-500.0,0.00020123,2]
[393582953,1762819847627,-500.0,0.00020123,2]
[393582954,1762819847636,-500.0,0.00020123,2]
[393582955,1762819847645,-500.0,0.00020123,2]
[393582956,1762819847654,-500.0,0.00020123,2]
[393582957,1762819847663,-500.0,0.00020123,2]
[393582958,1762819847672,-8270.04041843,0.00020124,2]
[393582959,1762819847684,-12631.79526024,0.00020124,2]
[393582996,1762820204364,-5000.0,0.00019624,2]
[393582997,1762820204389,-177.86515195,0.00019723,2]
[393582998,1762820204414,-1752.36074982,0.00019822,2]
[393582999,1762820204438,-1200.0,0.00019827,2]
[393583000,1762820204462,-300.0,0.00019827,2]
[393583001,1762820204485,-2270.076504,0.00019828,2]
[393583002,1762820204509,-885.1624517,0.00019828,2]
[393583003,1762820204533,-151.0,0.00020111,2]
[393583004,1762820204557,-177.53843041,0.00020111,2]
[393583005,1762820204591,-300.0,0.0002012,2]
[393583006,1762820204615,-300.0,0.0002012,2]
[393583007,1762820204637,-300.0,0.0002012,2]